Workbook

Sheet BDD
A1: Nom | B1: Secteur | C1: Poste | D1: 2013 | P1: 2014
D2: Janvier | E2: Février | F2: Mars | G2: Avril | H2: Mai | I2: Juin | J2: Juillet | K2: Août | L2: Septembre | M2: Octobre | N2: Novembre | O2: Décembre | P2: Janvier | Q2: Février | R2: Mars | S2: Avril | T2: Mai | U2: Juin | V2: Juillet | W2: Août | X2: Septembre | Y2: Octobre | Z2: Novembre | AA2: Décembre
A3: A | B3: P | C3: AT | D3: 0.2118055556 | E3: 0.3506944444 | F3: 0.3819444444 | G3: 0.4826388889 | H3: 0.4548611111 | I3: 0.6319444444 | J3: 0.3402777778 | K3: 0.01388888889 | L3: 0.05555555556 | M3: 0.21875 | N3: 0.4479166667 | P3: 0.3645833333 | Q3: 0.5347222222 | R3: 0.71875
A4: Z | B4: P | C4: D | D4: 1.729166667 | E4: 2.3125 | F4: 2.260416667 | G4: 2.5 | H4: 2.510416667 | I4: 2.510416667 | J4: 2.614583333 | K4: 2.71875 | L4: 2.65625 | M4: 2.989583333 | N4: 3.208333333 | P4: 3.729166667 | Q4: 3.729166667 | R4: 3.9375 | S4: 4.416666667
A5: E | B5: P | C5: D | D5: 0.5104166667 | E5: 0.9479166667 | F5: 1.364583333 | G5: 1.739583333 | H5: 1.135416667 | I5: 0.875 | J5: 0.46875 | K5: 0.84375 | L5: 0.6666666667 | M5: 1.072916667 | N5: 1.197916667 | P5: 1.447916667 | Q5: 1.791666667 | R5: 1.375
A6: R | B6: P | C6: AT | D6: 0.8263888889 | E6: 0.9791666667 | F6: 0.7222222222 | G6: 0.5381944444 | H6: 0.5173611111 | I6: 0.7604166667 | J6: 0.6111111111 | K6: 0.6875 | L6: 0.65625 | M6: 0.9027777778 | N6: 1.336805556 | P6: 1.545138889 | Q6: 0.5104166667 | R6: 0.9409722222 | S6: 0.8541666667
A7: T | B7: P | C7: AT | D7: =-"0:45" -> -0.03125 | E7: 0.01388888889 | F7: 0.05555555556 | G7: 0.03819444444 | H7: 0.05555555556 | I7: 0.01041666667 | J7: =-"0:40" -> -0.02777777778 | K7: =-"2:55" -> -0.1215277778 | L7: 0.05208333333 | M7: 0.07291666667 | N7: 0.09027777778 | P7: 0.07638888889 | Q7: 0.08680555556
A8: Y | B8: P | C8: D | D8: 0.25 | E8: 0.2708333333 | F8: 0.2083333333 | G8: 0.1458333333 | H8: 0.2083333333 | I8: 0.25 | J8: 0.125 | K8: 0.2083333333 | L8: 0.125 | M8: 0.3125 | N8: 0.3020833333 | P8: 0.3958333333 | Q8: 0.7291666667
A9: U | B9: P | C9: D | D9: 0.46875 | E9: 0.5208333333 | F9: 0.3472222222 | G9: 0.3888888889 | H9: 0.2291666667 | J9: 0.08333333333 | K9: 0.1875 | L9: 0.3958333333 | M9: 0.375 | N9: 0.3020833333 | P9: 0.25 | Q9: 0.1458333333 | R9: 0.75 | S9: 1.166666667
A10: I | B10: P | C10: D | D10: =-"1:30" -> -0.0625 | E10: 0 | F10: =-"1:30" -> -0.0625 | G10: 0.02083333333 | H10: 0.02083333333 | I10: 0.125 | J10: 0.0625 | K10: 0.02083333333 | L10: 0.1666666667 | M10: 0 | N10: 0.0625 | P10: 0.08333333333 | Q10: 0.2083333333 | R10: 0.1041666667
A11: O | B11: P | C11: D | D11: 0.2291666667 | E11: 0.2708333333 | F11: 0.125 | G11: 0.125 | H11: 0.1145833333 | I11: 0.2291666667 | J11: 0.28125 | K11: 0.1875 | L11: 0.09375 | M11: 0.2708333333 | P11: 0.3125 | Q11: 0.3854166667 | R11: 0.3958333333

Sheet Analyse globale
A1: Nom | B1: Secteur | C1: Poste | D1: Avant Dernière valeur | E1: Dernière valeur | F1: Variation
A3: A | B3: P | C3: AT | D3: =INDEX(BDD!D3:AA3,,MATCH('Analyse globale'!E3,BDD!D3:AA3)-1) -> 0.5347222222 | E3: =LOOKUP(9^9,BDD!K3:AA3) -> 0.71875 | F3: =E3-D3 -> 0.1840277778
A4: Z | B4: P | C4: D | D4: =INDEX(BDD!D4:AA4,,MATCH('Analyse globale'!E4,BDD!D4:AA4)-1) -> 3.9375 | E4: =LOOKUP(9^9,BDD!K4:AA4) -> 4.416666667 | F4: =E4-D4 -> 0.4791666667
A5: E | B5: P | C5: D | D5: =INDEX(BDD!D5:AA5,,MATCH('Analyse globale'!E5,BDD!D5:AA5)-1) -> 1.072916667 | E5: =LOOKUP(9^9,BDD!K5:AA5) -> 1.375 | F5: 0.3020833333
A6: R | B6: P | C6: AT | D6: =INDEX(BDD!D6:AA6,,MATCH('Analyse globale'!E6,BDD!D6:AA6)-1) -> 0.6875 | E6: =LOOKUP(9^9,BDD!K6:AA6) -> 0.8541666667 | F6: =E6-D6 -> 0.1666666667
A7: T | B7: P | C7: AT | D7: =INDEX(BDD!D7:AA7,,MATCH('Analyse globale'!E7,BDD!D7:AA7)-1) -> 0.07638888889 | E7: =LOOKUP(9^9,BDD!K7:AA7) -> 0.08680555556 | F7: 0.01041666667
A8: Y | B8: P | C8: D | D8: =INDEX(BDD!D8:AA8,,MATCH('Analyse globale'!E8,BDD!D8:AA8)-1) -> 0.3958333333 | E8: =LOOKUP(9^9,BDD!K8:AA8) -> 0.7291666667 | F8: 0.3333333333
A9: U | B9: P | C9: D | D9: =INDEX(BDD!D9:AA9,,MATCH('Analyse globale'!E9,BDD!D9:AA9)-1) -> 0.75 | E9: =LOOKUP(9^9,BDD!K9:AA9) -> 1.166666667 | F9: =E9-D9 -> 0.4166666667
A10: I | B10: P | C10: D | D10: =INDEX(BDD!D10:AA10,,MATCH('Analyse globale'!E10,BDD!D10:AA10)-1) -> 0 | E10: =LOOKUP(9^9,BDD!K10:AA10) -> 0.1041666667 | F10: 0.1041666667
A11: O | B11: P | C11: D | D11: =INDEX(BDD!D11:AA11,,MATCH('Analyse globale'!E11,BDD!D11:AA11)-1) -> 0.3854166667 | E11: =LOOKUP(9^9,BDD!K11:AA11) -> 0.3958333333 | F11: 0.01041666667
